bitfinex/quotes_SOLUSD_20241202
["timestamp","ask_amount","ask_price","bid_price","bid_amount"]
[1733150200253,20.0,226.87,226.76,16.5506]
[1733150200254,20.0,226.87,226.83,4.7492]
[1733150200449,0.12549,226.86,226.83,4.7492]
[1733150200752,1.22749,226.86,226.78,4.6238]
[1733150200971,1.102,226.86,226.8,4.6238]
[1733150201178,136.3018,226.9,226.82,4.6238]
[1733150201386,0.12549,226.89,226.82,4.6238]
[1733150201868,1.1018,226.9,226.82,10.7619]
[1733150202064,1.1018,226.9,226.83,4.6238]
[1733150202266,1.1018,226.9,226.82,6.1381]
[1733150202579,0.12549,226.89,226.78,4.6238]
[1733150203084,0.12549,226.89,226.76,27.5564]
[1733150203085,135.32549,226.89,226.76,27.5564]
[1733150203283,0.12549,226.87,226.77,4.6238]
[1733150203483,0.12549,226.82,226.77,4.6238]
[1733150203777,19.98992106,226.82,226.76,22.9326]
[1733150203983,1.1022,226.81,226.77,4.6238]
[1733150204185,1.1022,226.81,226.64,5.87986579]
[1733150204186,1.1022,226.81,226.73,4.6238]
[1733150205072,3.3066,226.81,226.73,4.6238]
[1733150205374,135.2,226.8,226.71,6.3895]
[1733150205762,20.0,226.77,226.7,19.8403]
[1733150205963,1.22789,226.76,226.71,4.6238]
[1733150206164,21.22789,226.76,226.71,4.6238]
[1733150207058,21.22789,226.76,226.7,15.2165]
[1733150207257,21.22789,226.76,226.69,5.1540357]
[1733150207258,23.43279,226.76,226.69,0.5302357]
[1733150207486,0.12549,226.74,226.69,0.5302357]
[1733150207785,20.12549,226.74,226.69,0.5302357]
[1733150207955,20.12549,226.7,226.69,0.5302357]
[1733150209188,1.22829,226.69,226.65,4.6238]
[1733150209491,1.22829,226.69,226.63,4.6238]
[1733150210157,1.22829,226.69,226.66,4.6238]
[1733150211457,1.22829,226.69,226.62,4.6238]
[1733150211879,1.22829,226.69,226.6,4.6238]
[1733150212291,0.12549,226.64,226.6,4.6238]
[1733150212585,0.12549,226.64,226.59,22.2436]
[1733150212782,0.12549,226.64,226.6,4.6238]
[1733150213187,20.12549,226.64,226.58,4.6238]
[1733150213479,0.12549,226.62,226.55,4.6238]
[1733150213686,21.22859,226.62,226.55,4.6238]
[1733150213876,21.22859,226.62,226.57,4.6238]
[1733150214186,0.12549,226.6,226.49,22.0451]
[1733150214367,20.12549,226.6,226.49,22.0451]
[1733150214564,0.12549,226.58,226.49,22.0451]
[1733150214766,20.12549,226.59,226.49,22.0451]
[1733150215467,0.12549,226.59,226.49,22.0451]
[1733150215863,1.22879,226.59,226.49,22.0451]
[1733150216064,21.22879,226.59,226.5,23.776884]
[1733150216372,20.12549,226.57,226.49,22.0451]
[1733150216579,0.12549,226.55,226.49,22.0451]
[1733150218187,0.12549,226.55,226.5,23.776884]
[1733150218486,0.12549,226.55,226.49,22.0451]
[1733150218695,0.12549,226.56,226.5,23.776884]
[1733150218904,1.1034,226.57,226.5,23.776884]
[1733150219183,20.0,226.6,226.5,23.776884]
[1733150219379,1.1032,226.61,226.5,23.776884]
[1733150220192,2.2056,226.69,226.52,23.776884]
[1733150220193,1.103,226.65,226.52,23.776884]
[1733150220364,1.1028,226.69,226.54,44.2866653]
[1733150220694,1.1028,226.69,226.57,23.776884]
[1733150221062,136.3026,226.73,226.57,44.2866653]
[1733150221270,136.3026,226.73,226.57,23.776884]
[1733150222577,20.0,226.7,226.57,23.776884]
[1733150222783,135.2,226.69,226.57,23.776884]
[1733150222996,135.2,226.69,226.56,22.9048]
[1733150222997,20.0,226.66,226.56,22.9048]
[1733150223569,1.1027,226.71,226.57,20.5097813]
[1733150224096,1.1027,226.71,226.56,22.9048]
[1733150224262,1.1027,226.71,226.57,23.776884]
[1733150224468,1.1027,226.71,226.57,49.2866653]
[1733150224795,1.1027,226.71,226.57,44.2866653]
[1733150225094,0.04224483,226.62,226.57,23.776884]
[1733150225282,0.00146775,226.62,226.57,23.776884]
[1733150226291,0.00146775,226.62,226.56,22.9048]
[1733150227500,0.00146775,226.62,226.57,23.776884]
[1733150230289,0.00146775,226.62,226.61,23.776884]
[1733150230590,135.2,226.77,226.61,23.776884]
[1733150230799,0.12549,226.76,226.6,23.776884]
[1733150230978,0.12549,226.74,226.6,20.5097813]
[1733150231301,1.1025,226.75,226.61,23.776884]
[1733150231874,1.1025,226.75,226.59,23.776884]
[1733150232074,1.1025,226.75,226.57,23.776884]
[1733150232075,0.12549,226.72,226.57,23.776884]
[1733150232276,0.12549,226.69,226.57,23.776884]
[1733150232589,20.12549,226.69,226.58,0.88034204]
[1733150232794,0.12549,226.69,226.58,26.39012334]
[1733150233093,19.62549,226.74,226.57,23.776884]
[1733150233305,19.62549,226.74,226.57,20.5097813]
[1733150233522,1.1025,226.75,226.56,22.9048]
[1733150233670,135.2,226.74,226.56,22.9048]
[1733150234189,1.1026,226.73,226.56,22.9048]
[1733150234387,135.2,226.72,226.56,22.9048]
[1733150234597,135.2,226.69,226.56,22.9048]
[1733150235107,0.12549,226.65,226.56,22.9048]
[1733150235285,20.0,226.64,226.5,21.9446]
[1733150235479,0.12549,226.63,226.5,21.9446]
[1733150235676,135.2,226.62,226.5,21.9446]
[1733150235875,0.12549,226.58,226.5,21.9446]
[1733150238206,20.12549,226.58,226.5,21.9446]
[1733150239220,20.12549,226.58,226.51,23.776884]
[1733150240708,0.5016,226.69,226.51,23.776884]
[1733150240709,21.103,226.65,226.51,45.16736778]
[1733150240913,135.2,226.72,226.51,44.2866653]
[1733150241080,3.82729684,226.7,226.51,44.2866653]
[1733150241282,135.2,226.69,226.51,23.776884]
[1733150241509,0.12549,226.67,226.51,23.776884]
[1733150241705,0.12549,226.66,226.51,23.776884]
[1733150242118,0.12549,226.63,226.51,23.776884]
[1733150243287,0.12549,226.61,226.51,23.776884]
[1733150243704,0.12549,226.61,226.5,21.9446]
[1733150244113,0.12549,226.57,226.5,21.9446]
[1733150245113,0.12549,226.57,226.51,23.776884]
[1733150248206,0.12549,226.57,226.5,21.9446]
[1733150248413,20.12549,226.59,226.5,21.9446]
[1733150248621,20.0,226.59,226.51,23.776884]
[1733150249403,1.1033,226.6,226.51,23.776884]
[1733150249597,1.1033,226.6,226.5,21.9446]
[1733150250019,20.0,226.58,226.5,21.9446]
[1733150250216,20.0,226.56,226.5,21.9446]
[1733150250734,20.0,226.55,226.5,21.9446]
[1733150251025,20.0,226.56,226.5,21.9446]
[1733150251323,21.1034,226.56,226.5,21.9446]
[1733150251523,20.0,226.55,226.5,21.9446]
[1733150252005,0.12549,226.54,226.5,21.9446]
[1733150252810,17.21400022,226.55,226.5,21.9446]
[1733150253199,1.1033,226.59,226.5,21.9446]
[1733150255017,20.12549,226.58,226.5,21.9446]
[1733150256035,0.12549,226.56,226.47,0.5302357]
[1733150256229,20.0,226.54,226.47,0.5302357]
[1733150256533,0.12549,226.53,226.47,0.5302357]
[1733150256736,20.12549,226.53,226.47,0.5302357]
[1733150257110,0.12549,226.52,226.47,0.5302357]
[1733150259418,0.12549,226.5,226.47,0.5302357]
[1733150259933,20.12549,226.5,226.47,0.5302357]
[1733150261621,0.12549,226.5,226.47,0.5302357]
[1733150263944,135.2,226.54,226.47,0.5302357]
[1733150264537,1.1033,226.59,226.47,0.5302357]
[1733150264838,0.12549,226.58,226.49,23.776884]
[1733150265542,1.1033,226.59,226.49,23.776884]
[1733150265725,140.2,226.56,226.47,3.57e-05]
[1733150265935,0.5016,226.58,226.33,22.5484]
[1733150265936,20.0,226.52,226.33,22.5484]
[1733150266231,0.12549,226.46,226.33,22.5484]
[1733150266442,20.12549,226.46,226.33,22.5484]
[1733150267317,1.1036,226.52,226.41,12.87973704]
[1733150267525,135.2,226.59,226.41,12.87973704]
[1733150267722,1.1034,226.56,226.41,12.87973704]
[1733150268030,135.2,226.58,226.43,12.87973704]
[1733150268231,0.12549,226.57,226.43,12.87973704]
[1733150268631,135.2,226.58,226.43,12.87973704]
[1733150269440,0.12549,226.57,226.43,12.87973704]
[1733150270124,1.22889,226.57,226.42,22.0867]
[1733150270331,0.12549,226.54,226.42,22.0867]
[1733150271030,0.12549,226.56,226.42,22.0867]
[1733150271229,0.12549,226.52,226.42,22.0867]
[1733150272347,23.776884,226.56,226.42,22.0867]
[1733150272348,0.12549,226.56,226.43,12.87973704]
[1733150272661,20.12549,226.56,226.43,12.87973704]
[1733150273661,20.12549,226.56,226.44,12.87973704]
[1733150273970,20.0,226.56,226.46,12.87973704]
[1733150274247,20.0,226.57,226.47,15.8157]
[1733150274452,0.12549,226.56,226.47,15.8157]
[1733150274925,0.12549,226.57,226.47,15.8157]
[1733150276027,1.1033,226.58,226.47,15.8157]
[1733150276926,0.12549,226.57,226.47,15.8157]
[1733150277442,20.0,226.6,226.49,6.2341]
[1733150278052,0.12549,226.59,226.49,6.2341]
[1733150279359,1.1031,226.62,226.49,6.2341]
[1733150279527,1.1029,226.66,226.52,29.50643704]
[1733150279726,0.12549,226.65,226.52,16.6267]
[1733150280356,0.12549,226.65,226.52,29.50643704]
[1733150280539,1.1029,226.66,226.53,12.87973704]
[1733150280732,1.1029,226.66,226.52,29.50643704]
[1733150281061,0.12549,226.65,226.53,12.87973704]
[1733150281228,1.1029,226.66,226.53,12.87973704]
[1733150281424,136.3025,226.74,226.6,12.87973704]
[1733150281639,1.1025,226.74,226.62,27.94983704]
[1733150282048,1.1025,226.74,226.62,15.0701]
[1733150282430,0.06512897,226.76,226.64,12.87973704]
[1733150282630,0.06512897,226.76,226.62,15.0701]
[1733150282631,0.06512897,226.76,226.65,20.05916647]
[1733150282935,0.06512897,226.76,226.69,29.26223704]
[1733150283652,0.06512897,226.76,226.71,12.87973704]
[1733150283865,1.102,226.86,226.72,13.75941]
[1733150284147,1.102,226.86,226.74,12.87973704]
[1733150284355,1.102,226.86,226.73,6.4661]
[1733150284532,0.12549,226.85,226.73,6.4661]
[1733150284729,1.102,226.86,226.73,6.4661]
[1733150285249,0.12549,226.85,226.73,6.4661]
[1733150285434,1.102,226.84,226.73,6.4661]
[1733150285639,0.12549,226.83,226.73,6.4661]
[1733150286563,1.1019,226.88,226.73,27.02734806]
[1733150286739,1.1019,226.88,226.74,20.56124806]
[1733150287257,1.1019,226.88,226.75,20.56124806]
[1733150287436,0.12549,226.87,226.75,20.56124806]
[1733150287636,0.12549,226.87,226.74,20.56124806]
[1733150287842,0.12549,226.87,226.73,27.02734806]
[1733150288456,0.12549,226.85,226.73,6.4661]
[1733150290767,0.12549,226.79,226.73,6.4661]
[1733150290966,20.12549,226.79,226.69,16.3825]
[1733150291453,0.12549,226.74,226.69,16.3825]
[1733150291654,0.12549,226.74,226.68,6.168]
[1733150292043,20.12549,226.74,226.63,22.1114]
[1733150292872,1.1026,226.73,226.63,22.1114]
[1733150293157,0.12549,226.72,226.63,22.1114]
[1733150293561,20.0,226.74,226.65,20.56124806]
[1733150293859,20.0,226.74,226.64,20.56124806]
[1733150294243,20.0,226.74,226.63,22.1114]
[1733150294550,0.12549,226.73,226.63,22.1114]
[1733150295262,0.12549,226.71,226.63,22.1114]
[1733150296453,0.12549,226.67,226.58,6.2739]
[1733150296649,20.0,226.68,226.6,20.56124806]
[1733150296854,1.1024,226.76,226.63,20.56124806]
[1733150297040,0.12549,226.75,226.62,20.56124806]
[1733150297242,0.12549,226.71,226.59,20.56124806]
[1733150298138,0.12549,226.71,226.6,20.56124806]
[1733150298370,0.12549,226.71,226.61,20.56124806]
[1733150298666,0.12549,226.71,226.6,20.56124806]
[1733150298961,0.12549,226.71,226.61,20.56124806]
[1733150299169,136.3024,226.76,226.62,20.56124806]
[1733150299170,20.0,226.73,226.62,20.56124806]
[1733150299467,20.0,226.73,226.61,20.56124806]
[1733150300155,0.12549,226.72,226.64,20.56124806]
[1733150300462,7.7055,226.87,226.7,20.56124806]
[1733150300463,135.2,226.84,226.7,20.56124806]
[1733150300672,136.3021,226.84,226.71,20.56124806]
[1733150300881,1.1021,226.84,226.72,20.56124806]
[1733150301179,0.12549,226.83,226.71,20.56124806]
[1733150301379,0.12549,226.83,226.7,27.03674806]
[1733150301753,0.12549,226.81,226.7,6.4755]
[1733150301962,23.902374,226.81,226.7,6.4755]
[1733150302167,0.12549,226.79,226.66,15.2589]
[1733150302371,23.902374,226.77,226.66,15.2589]
[1733150302564,23.902374,226.77,226.56,10.0]
[1733150302565,159.102374,226.77,226.61,16.5411]
[1733150302885,23.902374,226.75,226.61,16.5411]
[1733150303062,0.12549,226.71,226.61,16.5411]
[1733150306377,21.22819,226.71,226.61,16.5411]
[1733150308483,21.22819,226.71,226.58,6.1964]
[1733150310290,0.12549,226.69,226.58,6.1964]
[1733150310493,0.12549,226.69,226.58,26.75764806]
[1733150311383,0.12549,226.69,226.59,20.56124806]
[1733150311695,0.12549,226.69,226.58,26.75764806]
[1733150311921,0.12549,226.69,226.58,6.1964]
[1733150313317,0.12549,226.7,226.58,6.1964]
[1733150314169,0.12549,226.7,226.58,26.75764806]
[1733150314368,0.12549,226.7,226.61,20.56124806]
[1733150315400,0.12549,226.7,226.6,20.56124806]
[1733150315704,0.12549,226.7,226.61,20.56124806]
[1733150315884,135.2,226.8,226.64,20.56124806]
[1733150316090,135.2,226.8,226.63,20.56124806]
[1733150316474,137.97683543,226.8,226.63,20.56124806]
[1733150316919,0.12549,226.77,226.6,20.56124806]
[1733150317100,0.12549,226.74,226.6,20.56124806]
[1733150317274,20.12549,226.74,226.6,20.56124806]
[1733150318384,20.12549,226.74,226.61,20.56124806]
[1733150318584,20.12549,226.74,226.63,20.56124806]
[1733150318802,20.0,226.77,226.65,20.56124806]
[1733150319107,3.34193457,226.81,226.67,20.56124806]
[1733150319283,135.2,226.86,226.7,20.56124806]
[1733150319898,0.5016,226.87,226.72,20.56124806]
[1733150320399,135.2,226.97,226.82,20.56124806]
[1733150320581,135.2,226.97,226.73,5.87967348]
[1733150320582,0.5016,226.99,226.83,20.56124806]
[1733150320799,135.2,226.98,226.85,20.56124806]
[1733150320997,0.5016,226.99,226.85,20.56124806]
[1733150321675,0.5016,226.99,226.81,0.87921048]
[1733150321676,0.5016,226.99,226.84,20.56124806]
[1733150322094,0.5016,226.99,226.82,20.56124806]
[1733150322612,0.12549,226.91,226.8,42.83894806]
[1733150323314,0.12549,226.91,226.81,20.56124806]
[1733150323613,0.12549,226.91,226.82,20.56124806]
[1733150324214,0.12549,226.91,226.81,21.44058725]
[1733150324887,20.0,226.98,226.81,21.44058725]
[1733150325087,20.0,226.98,226.84,20.56124806]
[1733150325300,135.2,227.01,226.86,20.56124806]
[1733150326950,135.2,227.01,226.85,20.56124806]
[1733150327104,20.0,226.98,226.85,20.56124806]
[1733150327614,20.0,227.01,226.86,20.56124806]
[1733150327801,0.5302357,227.02,226.89,20.56124806]
[1733150328619,0.5302357,227.02,226.86,20.56124806]
[1733150328817,0.5302357,227.02,226.87,20.56124806]
[1733150328994,0.12549,227.0,226.85,20.56124806]
[1733150329191,20.12549,227.0,226.85,20.56124806]
[1733150329387,20.12549,227.0,226.84,44.33813206]
[1733150329788,20.12549,227.0,226.84,20.56124806]
[1733150330214,20.12549,227.0,226.85,20.56124806]
[1733150330806,20.12549,227.0,226.86,20.56124806]
[1733150331213,20.12549,227.0,226.88,20.56124806]
[1733150332598,0.5302357,227.02,226.89,20.56124806]
[1733150332797,0.5302357,227.02,226.9,20.56124806]
[1733150333103,0.12549,227.01,226.9,20.56124806]
[1733150333803,20.12549,227.01,226.88,20.56124806]
[1733150334188,20.12549,227.01,226.9,20.56124806]
[1733150334394,20.12549,227.01,226.89,20.56124806]
[1733150335115,20.12549,227.01,226.88,20.56124806]
[1733150335695,20.12549,227.01,226.87,20.56124806]
[1733150336199,20.12549,227.01,226.86,20.56124806]
[1733150336703,20.12549,227.01,226.85,20.56124806]
[1733150337095,20.0,226.97,226.83,20.56124806]
[1733150337509,0.12549,226.96,226.83,20.56124806]
[1733150337709,0.12549,226.96,226.81,4.406]
[1733150338108,0.12549,226.96,226.8,22.2777]
[1733150338309,0.12549,226.96,226.8,42.83894806]
[1733150338521,0.12549,226.96,226.8,22.2777]
[1733150338714,0.12549,226.92,226.8,22.2777]
[1733150339121,20.12549,226.92,226.8,22.2777]
[1733150339795,0.12549,226.9,226.77,4.406]
[1733150340000,0.12549,226.9,226.75,6.56]
[1733150340220,23.902374,226.9,226.75,6.56]
[1733150340418,0.12549,226.86,226.74,15.6838]
[1733150340627,20.12549,226.86,226.69,42.80504806]
[1733150340832,20.12549,226.86,226.69,22.2438]
[1733150341118,0.12549,226.81,226.69,22.2438]
[1733150341997,0.12549,226.77,226.65,20.56124806]
[1733150342448,20.0,226.78,226.66,0.87993901]
[1733150342600,20.0,226.78,226.65,20.56124806]
[1733150343112,20.0,226.78,226.66,20.56124806]
[1733150343428,0.12549,226.77,226.66,20.56124806]
[1733150343808,0.12549,226.77,226.63,23.05446632]
[1733150343809,0.12549,226.77,226.65,20.56124806]
[1733150344010,0.12549,226.8,226.65,20.56124806]
[1733150344512,0.12549,226.8,226.68,20.56124806]
[1733150344832,20.12549,226.8,226.68,20.56124806]
[1733150345007,20.12549,226.8,226.66,20.56124806]
[1733150345321,20.12549,226.8,226.67,20.56124806]
[1733150345532,20.12549,226.8,226.65,0.87991051]
[1733150345533,0.12549,226.8,226.65,20.56124806]
[1733150345907,0.12549,226.8,226.66,20.56124806]
[1733150346821,0.12549,226.76,226.64,20.56124806]
[1733150347126,0.12549,226.76,226.63,42.73584806]
[1733150347323,0.12549,226.76,226.63,43.61586551]
[1733150347508,0.12549,226.76,226.65,20.56124806]
[1733150348118,0.12549,226.76,226.67,20.56124806]
[1733150348524,0.12549,226.78,226.65,20.56124806]
[1733150348832,0.5016,226.83,226.69,20.56124806]
[1733150349622,0.12549,226.82,226.67,20.56124806]
[1733150349824,0.12549,226.82,226.67,12.85203069]
[1733150350324,159.102374,226.82,226.67,12.85203069]
[1733150350532,159.102374,226.82,226.63,22.1746]
[1733150350533,0.12549,226.78,226.63,35.02663069]
[1733150350707,0.12549,226.74,226.63,22.1746]
[1733150351427,0.12549,226.74,226.61,0.88003763]
[1733150351613,20.12549,226.74,226.58,12.85203069]
[1733150351933,20.12549,226.74,226.6,12.85203069]
[1733150352238,20.12549,226.74,226.61,0.8800712]
[1733150352613,0.12549,226.72,226.57,0.88013154]
[1733150352835,0.12549,226.72,226.59,12.85203069]
[1733150353209,0.12549,226.72,226.57,13.73216223]
[1733150353530,20.0,226.74,226.64,20.56971486]
[1733150353712,0.5016,226.78,226.64,20.56971486]
[1733150354231,0.12549,226.77,226.63,20.56971486]
[1733150354526,0.12549,226.77,226.63,24.97571486]
[1733150354731,0.12549,226.77,226.63,20.56971486]
[1733150354904,20.12549,226.77,226.63,20.56971486]
[1733150356325,20.12549,226.77,226.61,21.44971076]
[1733150356534,0.12549,226.75,226.61,4.406]
[1733150356835,20.12549,226.72,226.57,21.44976837]
[1733150357428,20.12549,226.72,226.58,20.56971486]
[1733150358405,20.12549,226.72,226.59,0.88018074]
[1733150358605,20.12549,226.72,226.6,20.56971486]
[1733150360835,20.12549,226.72,226.61,4.406]
[1733150361013,20.12549,226.72,226.58,21.44988171]
[1733150361328,20.12549,226.72,226.6,20.56971486]
[1733150361530,135.26512897,226.75,226.64,20.56971486]
[1733150361706,135.26512897,226.75,226.65,20.56971486]
[1733150361906,135.26512897,226.75,226.63,20.56971486]
[1733150362107,0.12549,226.74,226.61,20.56971486]
[1733150362506,135.26512897,226.75,226.65,20.56971486]
[1733150362721,0.06512897,226.75,226.68,20.56971486]
[1733150363015,0.06512897,226.75,226.7,20.56971486]
[1733150363333,0.06512897,226.75,226.7,21.4494359]
[1733150363522,0.06512897,226.75,226.71,20.56971486]
[1733150364311,0.06512897,226.75,226.69,20.56971486]
[1733150365116,0.06512897,226.75,226.7,0.87976374]
[1733150365726,0.06512897,226.75,226.72,20.56971486]
[1733150366010,0.06512897,226.75,226.7,20.56971486]
[1733150366226,0.06512897,226.75,226.71,0.87966445]
[1733150366430,0.06512897,226.75,226.72,20.56971486]
[1733150367311,0.06512897,226.75,226.72,21.44930493]
[1733150367513,0.06512897,226.75,226.73,20.56971486]
[1733150368240,0.06512897,226.75,226.73,21.44928038]
[1733150369227,0.06512897,226.75,226.71,20.56971486]
[1733150370514,0.06512897,226.75,226.69,20.56971486]
[1733150370740,0.06512897,226.75,226.67,42.40301486]
[1733150370912,0.06512897,226.75,226.63,20.56971486]
[1733150371108,0.06512897,226.75,226.64,0.87996064]
[1733150371337,0.06512897,226.75,226.64,21.4496755]
[1733150372841,0.06512897,226.75,226.62,20.56971486]
[1733150373064,0.06512897,226.75,226.63,21.44971462]
[1733150373917,20.0,226.74,226.61,16.83578909]
[1733150374240,20.0,226.74,226.62,20.56971486]
[1733150374448,0.12549,226.73,226.62,20.56971486]
[1733150374619,0.12549,226.73,226.61,37.40550395]
[1733150375160,0.12549,226.71,226.61,16.83578909]
[1733150375317,0.12549,226.71,226.61,0.87998909]
[1733150376057,0.12549,226.71,226.6,0.88010139]
[1733150376254,0.12549,226.71,226.6,21.44981625]
[1733150377757,0.12549,226.71,226.6,13.74002381]
[1733150377956,0.06512897,226.75,226.67,12.85992242]
[1733150378258,0.06512897,226.75,226.68,0.87989858]
[1733150378432,0.06512897,226.75,226.62,4.406]
[1733150378433,0.06512897,226.75,226.65,12.85992242]
[1733150378630,0.06512897,226.75,226.62,0.87989858]
[1733150378956,0.06512897,226.75,226.61,12.85992242]
[1733150379142,0.06512897,226.75,226.63,12.85992242]
[1733150379338,0.19061897,226.75,226.63,12.85992242]
[1733150379539,0.19061897,226.75,226.62,12.85992242]
[1733150380942,20.19061897,226.75,226.61,13.73995492]
[1733150381750,0.06512897,226.75,226.62,12.85992242]
[1733150381933,0.12549,226.73,226.62,12.85992242]
[1733150382759,0.12549,226.73,226.63,12.85992242]
[1733150383259,0.12549,226.73,226.62,12.85992242]
[1733150384145,0.12549,226.73,226.61,12.85992242]
[1733150386242,0.12549,226.73,226.6,12.85992242]
[1733150386545,20.12549,226.73,226.61,12.85992242]
[1733150387743,0.12549,226.73,226.63,12.85992242]
[1733150388245,0.12549,226.73,226.64,12.85992242]
[1733150389562,0.12549,226.73,226.62,12.85992242]
[1733150391261,0.12549,226.73,226.63,12.85992242]
[1733150391969,0.12549,226.73,226.62,12.85992242]
[1733150392171,0.12549,226.73,226.61,12.85992242]
[1733150394265,0.12549,226.73,226.62,12.85992242]
[1733150394578,20.12549,226.73,226.62,12.85992242]
[1733150395571,20.12549,226.73,226.61,12.85992242]
[1733150396346,20.12549,226.73,226.62,12.85992242]
[1733150397263,20.12549,226.73,226.61,12.85992242]
[1733150398974,0.12549,226.71,226.59,0.88013713]
[1733150399171,0.12549,226.68,226.57,12.85992242]
[1733150399858,0.12549,226.68,211.44,0.28378]
[1733150399859,0.12549,226.68,226.5,34.85807582]
[1733150400050,20.0,226.64,226.5,36.68059824]
[1733150400249,0.12549,226.63,226.5,22.9404]
[1733150400550,0.12549,226.63,226.5,16.4901]
[1733150400746,0.12549,226.63,226.49,12.85992242]
[1733150400975,0.12549,226.59,226.47,12.85992242]
[1733150401657,0.12549,226.59,226.49,12.85992242]
[1733150401850,0.12549,226.59,226.5,12.85992242]
[1733150402048,0.5016,226.63,226.52,12.85992242]
[1733150402349,0.12549,226.62,226.5,12.85992242]
[1733150402547,0.12549,226.62,226.47,0.88062853]
[1733150402548,0.12549,226.62,226.51,12.85992242]
[1733150403172,0.12549,226.62,226.5,12.85992242]
[1733150403469,0.12549,226.62,226.51,12.85992242]
[1733150403673,135.7016,226.67,226.52,12.85992242]
[1733150403877,24.278484,226.67,226.54,12.85992242]
[1733150404052,0.12549,226.66,226.54,12.85992242]
[1733150404247,0.12549,226.66,226.49,11.0379]
[1733150404248,0.12549,226.66,226.53,12.85992242]
[1733150404463,0.12549,226.66,226.52,12.85992242]
[1733150404666,159.102374,226.66,226.47,12.85992242]
[1733150404879,23.902374,226.64,226.46,12.85992242]
[1733150405178,0.12549,226.6,226.47,12.85992242]
[1733150405370,0.12549,226.6,226.5,12.85992242]
[1733150405573,0.12549,226.6,226.49,12.85992242]
[1733150405774,0.12549,226.6,226.45,22.0567]
[1733150405977,43.902374,226.56,226.42,12.85992242]
[1733150406155,20.0,226.53,226.42,12.85992242]
[1733150406360,0.12549,226.52,226.4,12.85992242]
[1733150406776,0.12549,226.52,226.39,38.04484121]
[1733150407280,0.12549,226.52,226.39,25.18491879]
[1733150407788,0.12549,226.52,226.39,35.28562242]
[1733150407955,0.12549,226.52,226.41,12.85992242]
[1733150408161,0.12549,226.52,226.42,12.85992242]
[1733150408469,0.12549,226.52,226.41,12.85992242]
[1733150410487,0.12549,226.52,226.4,12.85992242]
[1733150410782,0.12549,226.52,226.42,12.85992242]
[1733150410968,0.5016,226.57,226.46,12.85992242]
[1733150411169,135.2,226.62,226.48,12.85992242]
[1733150411374,0.5016,226.63,226.49,12.85992242]
[1733150411566,0.5016,226.63,226.46,0.88068022]
[1733150411567,0.12549,226.62,226.48,12.85992242]
[1733150411757,0.12549,226.62,226.46,0.88068022]
[1733150411758,0.5016,226.63,226.49,12.85992242]
[1733150411959,0.5016,226.63,226.5,12.85992242]
[1733150413069,0.12549,226.62,226.5,12.85992242]
[1733150413374,0.12549,226.58,226.5,12.85992242]
[1733150413688,20.0,226.61,226.48,12.85992242]
[1733150413689,0.12549,226.6,226.48,12.85992242]
[1733150413888,0.12549,226.6,226.46,0.88068022]
[1733150413889,0.12549,226.56,226.47,12.85992242]
[1733150414194,0.12549,226.56,226.45,12.85992242]
[1733150415372,0.12549,226.52,226.41,12.85992242]
[1733150415572,0.12549,226.52,226.4,12.85992242]
[1733150416175,0.12549,226.52,226.39,35.28562242]
[1733150416395,0.12549,226.52,226.39,22.4257]
[1733150416597,44.403974,226.52,226.36,12.85992242]
[1733150418094,44.403974,226.52,226.37,12.85992242]
[1733150418390,23.902374,226.5,226.37,12.85992242]
[1733150418571,0.12549,226.46,226.37,12.85992242]
[1733150418765,0.12549,226.46,226.38,12.85992242]
[1733150418969,0.12549,226.46,226.4,12.85992242]
[1733150419280,0.5016,226.57,226.45,12.85992242]
[1733150419599,20.5016,226.57,226.44,12.85992242]
[1733150419884,0.5016,226.57,226.44,12.85992242]
[1733150420093,0.5016,226.57,226.47,12.85992242]
[1733150420391,0.5016,226.57,226.48,12.85992242]
[1733150421300,0.5016,226.62,226.51,12.85992242]
[1733150421470,0.5016,226.62,226.53,12.85992242]